[Event "ChessKid Cup Div-III 2023"]
[Site "Online"]
[Date "2023.05.26"]
[Round "6.1"]
[White "Pichot, Alan"]
[Black "Harikrishna, Pentala"]
[Result "1/2-1/2"]
[ECO "C52"]
[WhiteElo "2638"]
[BlackElo "2704"]
[Annotator "TA"]
[PlyCount "168"]
[EventDate "2023.05.21"]
[EventType "k.o."]
[EventCountry "NET"]
[SourceTitle "playchess.com"]
[Source "ChessBase"]
[SourceQuality "1"]
[TimeControl "900+3"]

{[%evp 10,168,-25,-32,15,7,0,11,8,11,13,13,13,8,5,6,8,-6,5,0,0,0,0,0,0,-6,-3,-4,0,0,0,0,0,0,0,0,26,0,15,0,32,28,32,9,23,20,34,12,14,3,16,17,18,23,92,22,22,22,97,97,96,97,97,90,92,72,91,91,116,116,128,89,96,84,88,0,95,0,113,106,106,106,106,103,147,147,149,143,159,150,159,158,152,90,102,22,135,14,14,14,22,14,14,14,14,14,22,22,25,25,25,25,40,22,22,22,22,22,22,22,29,14,14,0,22,14,22,22,29,29,29,14,29,14,29,14,36,14,36,14,14,14,14,14,14,14,36,1,8,8,8,0,0,0,0,0,0,0,0,0,0]} 1. e4 {[%emt 0:00:07]} e5 {[%emt 0:00:05]} 2. Nf3 {[%emt 0:00:03]} Nc6 {[%emt 0:00:01]} 3. Bc4 {[%emt 0:00:03]} Bc5 {[%emt 0:00:02]} 4. b4 {[%emt 0:00:02]} Bxb4 {[%emt 0:00:03]} 5. c3 {[%emt 0:00:02]} Ba5 {[%emt 0:00:01]} 6. d4 {[%emt 0:00:05] [#]} b5 {[%emt 0:00:01] 6...d6 is a critical line. C52: Evans Gambit Accepted: 5 c3 Ba5.} 7. Bxb5 $11 {[%emt 0:00:59] Threatens to win with Bg5.} Nxd4 $1 {[%emt 0:00:04]} 8. Nxd4 {[%emt 0:00:11]} exd4 {[%emt 0:00:01]} 9. Qxd4 {[%emt 0:01:05][%cal Oe1g1]} Qf6 {[%emt 0:00:02]} 10. O-O {[%emt 0:00:27]} Bb6 {[%emt 0:00:03]} 11. Qd3 {[%emt 0:00:16]} Ne7 {[%emt 0:00:13][%cal Bg8e7,Be7d5,Bd5f4][%mdl 32]} 12. Nd2 {[%emt 0:00:50] Threatening Ba3.} O-O {[%emt 0:00:49] [#]} 13. Nc4 $146 {[%emt 0:00:31]} (13. Nf3 $5 {[%cal Rc1g5]}) ({Predecessor:} 13. Nf3 Ng6 14. a4 Ba5 15. Ra3 h6 16. Qd5 c6 17. Bxc6 Qxc6 18. Qxa5 Re8 19. Be3 Qxe4 20. Rd1 Bb7 21. Qb4 Qe7 22. Qxe7 {½-½ Ottesen,S (2356)-Hablizel,F (2330) Champion's League 2017/C2 email [4]}) 13... c6 {[%emt 0:01:17]} 14. Nxb6 {[%emt 0:00:13]} axb6 {[%emt 0:00:02]} 15. Bc4 {[%emt 0:00:00]} d5 {[%emt 0:00:40]} 16. exd5 {[%emt 0:00:07]} Nxd5 {[%emt 0:00:40]} 17. Bd2 {[%emt 0:01:32]} Be6 {[%emt 0:01:16]} 18. Bb3 {[%emt 0:00:21]} Nf4 {[%emt 0:01:29]} 19. Qe4 {[%emt 0:00:58][%csl LRc6,LRf4]} Bxb3 {[%emt 0:00:22]} 20. axb3 {[%emt 0:00:06]} Rxa1 {[%emt 0:00:04]} 21. Rxa1 {[%emt 0:00:03]} Nd5 {[%emt 0:00:01]} 22. Rc1 {[%emt 0:00:47]} Qg6 {[%emt 0:00:13]} 23. Qd4 {[%emt 0:00:31]} (23. Qxg6 {simplifies} hxg6 24. Ra1 Nc7 25. Kf1) 23... Qf6 {[%emt 0:00:36]} 24. Qe4 {[%emt 0:00:55]} Qg6 {[%emt 0:00:08]} 25. Qxg6 {[%emt 0:00:03]} hxg6 $14 {[%emt 0:00:02][%mdl 4096] Endgame KRB-KRN} 26. c4 {[%emt 0:00:01]} Nc7 {[%emt 0:00:23]} 27. Be3 {[%emt 0:00:15]} c5 {[%emt 0:00:03]} 28. Rd1 {[%emt 0:00:50]} Ne6 {[%emt 0:00:10]} 29. g3 {[%emt 0:00:06][%cal Ob3b4]} b5 {[%emt 0:00:16]} 30. b4 {[%emt 0:00:52]} Rb8 {[%emt 0:02:06]} 31. bxc5 {[%emt 0:00:25]} (31. cxb5 {simplifies} Rxb5 32. bxc5 Nxc5 33. Rd8+) 31... b4 {[%emt 0:00:03]} (31... bxc4 $11 32. Rc1 Kf8) 32. c6 {[%emt 0:00:15]} (32. h4 $16) 32... b3 $11 {[%emt 0:00:33]} 33. Rb1 {[%emt 0:00:31]} Kf8 {[%emt 0:00:17]} (33... b2 34. c7 Rc8 35. Rxb2 Rxc7 36. Rb4 $16) (33... Rb4 $1 $11) 34. Kf1 $16 {[%emt 0:00:13]} Ke7 {[%emt 0:01:07]} 35. Ke2 {[%emt 0:00:07]} Kd6 {[%emt 0:00:54]} 36. Kd2 {[%emt 0:00:01]} g5 {[%emt 0:00:12]} 37. Kc3 {[%emt 0:00:53]} Kxc6 {[%emt 0:01:03]} 38. Rxb3 {[%emt 0:00:49]} Ra8 {[%emt 0:00:01]} 39. Rb5 {[%emt 0:00:09]} Ra2 {[%emt 0:00:29]} 40. Kb3 {[%emt 0:00:12]} (40. Bxg5 $6 Rxf2 41. Be7 Rxh2 $11) 40... Ra1 {[%emt 0:00:18]} 41. Rb6+ {[%emt 0:00:51]} (41. Bxg5 $6 Nd4+ 42. Kb2 Rf1 $11) 41... Kc7 {[%emt 0:00:01] ...Rb1+ is the strong threat.} 42. Rb5 {[%emt 0:00:09]} Kc6 $1 {[%emt 0:00:01]} 43. Kc3 {[%emt 0:00:03]} (43. Bxg5 Nd4+ 44. Kb2 Rf1 $11) 43... Ra2 $1 {[%emt 0:00:02]} 44. Rf5 {[%emt 0:00:04]} ({Of course not} 44. Bxg5 $6 Rxf2 45. Rd5 Rxh2 $11) 44... f6 {[%emt 0:00:12]} 45. Rb5 {[%emt 0:00:01]} Kc7 {[%emt 0:00:19]} 46. Kd3 {[%emt 0:00:03]} g6 {[%emt 0:00:11]} 47. Ke4 {[%emt 0:00:07]} Ra6 {[%emt 0:00:12]} 48. g4 {[%emt 0:00:05] White is more active.} Kc6 {[%emt 0:00:04]} 49. Rb8 {[%emt 0:00:02] Black must now prevent Rg8.} Nc5+ {[%emt 0:00:06] [#]} 50. Bxc5 $1 {[%emt 0:00:05]} Kxc5 {[%emt 0:00:00] KR-KR} 51. Rc8+ {[%emt 0:00:01]} (51. Rg8 $142 Re6+ 52. Kd3) 51... Kd6 {[%emt 0:00:01]} 52. Rg8 {[%emt 0:00:03]} (52. Rd8+ $16 Ke6 53. Rd2) 52... Ra2 {[%emt 0:00:05] [#]} (52... Ke6 $1 $11 {keeps the balance.}) 53. Kf3 {[%emt 0:00:07]} ({Much worse is} 53. Rxg6 $6 Rxf2 54. Ke3 Rf4 $11) (53. f4 $1 $16 {[%cal Rf4g5]}) 53... Rc2 {[%emt 0:00:01]} 54. Rxg6 {[%emt 0:00:03]} Ke5 {[%emt 0:00:09]} 55. Rg8 {[%emt 0:00:02] Black should prevent Rc8.} Rc3+ {[%emt 0:00:00]} 56. Kg2 {[%emt 0:00:02] White wants to play Rc8.} Rxc4 {[%emt 0:00:02]} 57. Re8+ {[%emt 0:00:02]} Kd6 {[%emt 0:00:01]} 58. Kg3 {[%emt 0:00:02]} Rc3+ {[%emt 0:00:06]} 59. Re3 {[%emt 0:00:02]} Rc1 {[%emt 0:00:02]} 60. Kf3 {[%emt 0:00:02]} Rc4 {[%emt 0:00:01]} 61. h3 {[%emt 0:00:03]} Rc1 $1 {[%emt 0:00:04]} 62. Re2 {[%emt 0:00:07]} Rc3+ {[%emt 0:00:02]} 63. Kg2 {[%emt 0:00:01]} Rc4 {[%emt 0:00:03]} 64. Kg3 {[%emt 0:00:02]} Rc1 {[%emt 0:00:01]} 65. Rd2+ {[%emt 0:00:09]} Ke6 {[%emt 0:00:02]} 66. Re2+ {[%emt 0:00:01]} Kf7 {[%emt 0:00:01]} 67. Ra2 {[%emt 0:00:04]} Rg1+ {[%emt 0:00:03]} 68. Kf3 {[%emt 0:00:02]} Rh1 {[%emt 0:00:00]} 69. Kg2 {[%emt 0:00:01]} Rc1 {[%emt 0:00:01]} 70. Ra3 {[%emt 0:00:01]} Rb1 {[%emt 0:00:04]} 71. Ra8 {[%emt 0:00:05]} Rb3 {[%emt 0:00:03]} 72. Ra6 {[%emt 0:00:04]} Rc3 {[%emt 0:00:02]} 73. Ra1 {[%emt 0:00:03]} Rb3 {[%emt 0:00:00]} 74. Re1 {[%emt 0:00:01]} Kg6 {[%emt 0:00:04]} 75. Re3 {[%emt 0:00:01]} Rb1 {[%emt 0:00:03]} 76. Kf3 {[%emt 0:00:01]} Rb4 {[%emt 0:00:03]} 77. Kg3 {[%emt 0:00:03]} Rb1 {[%emt 0:00:02]} 78. f4 {[%emt 0:00:10]} gxf4+ {[%emt 0:00:03] The position is equal.} 79. Kxf4 {[%emt 0:00:01]} Rf1+ {[%emt 0:00:01]} 80. Rf3 {[%emt 0:00:01]} Rxf3+ $1 {[%emt 0:00:06]} ({Resist} 80... Rh1 81. Rc3 $16) 81. Kxf3 {[%emt 0:00:01] White threatens h4 and mate.} f5 {[%emt 0:00:00]} 82. gxf5+ {[%emt 0:00:06]} Kxf5 {[%emt 0:00:01]} 83. h4 {[%emt 0:00:00]} Kg6 {[%emt 0:00:01]} 84. h5+ {[%emt 0:00:00]} Kxh5 {[%emt 0:00:00] White really could win this.   Weighted Error Value: White=0.17 (very precise) /Black=0.11 (very precise)} 1/2-1/2

[Event "ChessKid Cup Div-III 2023"]
[Site "Online"]
[Date "2023.05.26"]
[Round "6.2"]
[White "Harikrishna, Pentala"]
[Black "Pichot, Alan"]
[Result "0-1"]
[ECO "E05"]
[WhiteElo "2704"]
[BlackElo "2638"]
[Annotator "TA"]
[PlyCount "104"]
[EventDate "2023.05.21"]
[EventType "k.o."]
[EventCountry "NET"]
[SourceTitle "playchess.com"]
[Source "ChessBase"]
[SourceQuality "1"]
[TimeControl "900+3"]

{[%evp 13,104,0,0,8,22,22,11,2,11,5,14,16,13,21,22,25,46,40,17,25,22,20,22,15,15,11,16,20,36,39,50,55,86,34,38,0,9,0,5,8,14,20,29,0,0,0,98,0,17,8,12,0,0,0,0,0,8,-201,-193,-262,-266,-226,-235,-597,-628,-533,-519,-1393,-1303,-1440,-1431,-1344,-1175,-1277,-1712,-1815,-1888,-3356,-2534,-12796,-880,-6115,-2641,-29986,-29987,-29987,-29988,-29988,-29989,-29993,-29991,-29991,-29992]} 1. d4 {[%emt 0:00:04]} Nf6 {[%emt 0:00:08]} 2. c4 {[%emt 0:00:01]} e6 {[%emt 0:00:02]} 3. Nf3 {[%emt 0:00:01]} d5 {[%emt 0:00:02]} 4. g3 {[%emt 0:00:01]} Be7 {[%emt 0:00:28]} 5. Bg2 {[%emt 0:00:01]} O-O {[%emt 0:00:02]} 6. O-O {[%emt 0:00:01]} dxc4 {[%emt 0:00:02]} 7. Qc2 {[%emt 0:00:01]} b5 {[%emt 0:00:05]} 8. a4 {[%emt 0:00:01] E05: Open Catalan: 5 Nf3 Be7.} Bb7 {[%emt 0:00:03] is cutting edge theory.} 9. axb5 {[%emt 0:00:06]} a6 {[%emt 0:00:01]} 10. bxa6 {[%emt 0:00:47] The position is equal.} (10. Qxc4 $2 axb5 11. Qxb5 Bc6 12. Rxa8 Bxb5 $19) 10... Nxa6 {[%emt 0:00:02]} 11. Qxc4 {[%emt 0:00:36]} Bd5 {[%emt 0:00:03]} 12. Qd3 {[%emt 0:00:41]} Nb4 {[%emt 0:00:07][%csl LRa1,LRd3]} 13. Rxa8 {[%emt 0:00:01]} Qxa8 {[%emt 0:00:01]} 14. Qd1 {[%emt 0:00:04]} Na2 {[%emt 0:00:08]} 15. Nc3 {[%emt 0:00:06]} Nxc3 {[%emt 0:00:04]} 16. bxc3 {[%emt 0:00:01]} h6 {[%emt 0:00:17]} 17. Bf4 {[%emt 0:00:23]} c5 {[%emt 0:00:07]} 18. Qa1 {[%emt 0:00:02] [#]} Ne4 $146 {[%emt 0:00:34]} ({Predecessor:} 18... Qb7 19. Qb1 Qa6 20. Qb2 Ra8 21. dxc5 Bxc5 22. Be5 Be7 23. Re1 Nd7 24. Bd4 Be4 {½-½ Lou,Y (2490)-Li,D (2539) CHN-ch Xinghua 2022 (3)}) 19. Qxa8 {[%emt 0:00:36]} Rxa8 {[%emt 0:00:47]} 20. Rc1 {[%emt 0:01:31]} Ra2 {[%emt 0:00:50]} 21. c4 {[%emt 0:01:17]} Ba8 {[%emt 0:00:57]} 22. Be3 {[%emt 0:00:18]} ({Stronger than} 22. Rb1 Nc3 23. Rb8+ Kh7 $17) 22... g5 {[%emt 0:02:01]} 23. dxc5 {[%emt 0:02:36]} ({Better is} 23. Ne5 $16) 23... Bxc5 $14 {[%emt 0:00:39]} 24. Bxc5 {[%emt 0:00:08]} Nxc5 {[%emt 0:00:03]} 25. Rd1 {[%emt 0:00:46]} Be4 {[%emt 0:00:59]} 26. Nd4 {[%emt 0:00:41]} Bg6 {[%emt 0:00:07]} 27. f4 {[%emt 0:00:30]} Kg7 {[%emt 0:01:24]} 28. Kf2 {[%emt 0:00:10]} Bd3 {[%emt 0:00:34]} 29. Ke1 {[%emt 0:00:59]} Kf6 {[%emt 0:01:09]} (29... Bxc4 $11 {keeps the balance.} 30. Rc1 Ra4) 30. Bf3 {[%emt 0:00:37]} ({White should try} 30. exd3 $16 Rxg2 31. Rd2 Rg1+ 32. Kf2) 30... Bg6 {[%emt 0:00:14]} 31. Nc6 {[%emt 0:00:22]} Be4 {[%emt 0:00:16]} 32. Ne5 {[%emt 0:01:17]} gxf4 {[%emt 0:00:42]} 33. gxf4 {[%emt 0:00:08]} Kf5 {[%emt 0:00:05]} 34. Bxe4+ {[%emt 0:01:00]} Nxe4 $11 {[%emt 0:00:03][%mdl 4096] Endgame KRN-KRN} 35. Nd3 $2 {[%emt 0:00:08] [#] White does not recover from this.} (35. Nxf7 $11 {and White has nothing to worry.} Kxf4 36. Nd6 (36. Nxh6 Ra7 $11)) 35... Nc3 $1 $19 {[%emt 0:00:09][%csl LRd1,LRe2]} 36. Rc1 {[%emt 0:00:01]} (36. e4+ {is a better defense.} Nxe4 37. h3) 36... Nxe2 {[%emt 0:00:08]} ({Don't play} 36... Rxe2+ 37. Kf1 Rxh2 38. Rxc3 $18) 37. Rb1 {[%emt 0:00:06]} Nd4 {[%emt 0:01:59] Prevents Rb5+} 38. Rb2 $2 {[%emt 0:00:30]} (38. Kf1) 38... Rxb2 {[%emt 0:00:12]} 39. Nxb2 {[%emt 0:00:00]} Kxf4 {[%emt 0:00:01] KN-KN} 40. h3 {[%emt 0:00:08]} (40. Kf2 $142 Ke4 41. Na4) 40... Ke3 {[%emt 0:00:11]} 41. c5 {[%emt 0:00:02]} f5 {[%emt 0:00:22]} 42. Nc4+ {[%emt 0:00:11]} Ke4 {[%emt 0:00:01]} 43. Nb6 {[%emt 0:00:02]} f4 {[%emt 0:00:08]} 44. Kf2 {[%emt 0:00:02]} e5 {[%emt 0:00:03][%cal Be6e5,Be5e4,Be4e3,Be3e2][%mdl 32] [#] Threatens to win with ...Nc6.} 45. h4 {[%emt 0:00:01]} Kf5 {[%emt 0:00:17] Hoping for ...Ke6.} 46. Nc4 {[%emt 0:00:01]} Ke6 {[%emt 0:00:05]} (46... e4 $142 47. h5 Ke6) 47. Nd6 {[%emt 0:00:04]} Kd5 {[%emt 0:00:22][%cal Oe5e4] And now ...e4! would win.} 48. h5 {[%emt 0:00:01]} e4 {[%emt 0:00:09] Black mates.} 49. Nf7 {[%emt 0:00:00]} e3+ {[%emt 0:00:02]} 50. Kf1 {[%emt 0:00:01]} f3 {[%emt 0:00:05]} 51. c6 {[%emt 0:00:01]} e2+ {[%emt 0:00:06]} 52. Kf2 {[%emt 0:00:07]} Nc2 {[%emt 0:00:02] Weighted Error Value: White=0.80/Black=0.21 (precise)} 0-1

[Event "ChessKid Cup Div-III 2023"]
[Site "Online"]
[Date "2023.05.26"]
[Round "6.3"]
[White "Pichot, Alan"]
[Black "Harikrishna, Pentala"]
[Result "0-1"]
[ECO "C67"]
[WhiteElo "2638"]
[BlackElo "2704"]
[Annotator "TA"]
[PlyCount "164"]
[EventDate "2023.05.21"]
[EventType "k.o."]
[EventCountry "NET"]
[SourceTitle "playchess.com"]
[Source "ChessBase"]
[SourceQuality "1"]
[TimeControl "900+3"]

{[%evp 18,164,13,16,10,22,14,14,22,17,25,24,33,31,28,31,26,-12,-1,-11,-15,-14,0,0,0,-2,18,-12,-7,-7,-11,-43,-11,-19,-12,-14,-13,-32,-34,-37,-41,-50,-50,-54,-48,-66,-56,-60,-42,-41,-50,-120,-120,-120,-120,-120,-120,-120,-120,-120,-120,-120,-120,-120,-113,-113,-98,-109,-84,-85,-84,-84,-84,-84,-77,-303,-91,-91,-91,-347,-120,-320,-300,-327,-319,-281,-238,-608,-501,-559,-523,-506,-481,-440,-416,-752,-743,-724,-709,-693,-686,-712,-475,-359,-72,-72,-72,-630,-242,-529,-72,-281,-256,-165,-88,-458,-82,-504,-50,-75,0,-86,-60,-94,-86,-612,-86,-94,0,-649,0,-643,-575,-463,-442,-535,-266,-5609,-5509,-29965,-29963,-29967,-29969,-29958,-29954,-29984,-29985,-29985,-29986]} 1. e4 {[%emt 0:00:08]} e5 {[%emt 0:00:05]} 2. Nf3 {[%emt 0:00:02]} Nc6 {[%emt 0:00:00]} 3. Bb5 {[%emt 0:00:05]} Nf6 {[%emt 0:00:03]} 4. O-O {[%emt 0:01:15][%cal Bh1f1,Bf1e1,Be1e5][%mdl 32]} Nxe4 {[%emt 0:00:02]} 5. Re1 {[%emt 0:00:01]} Nd6 {[%emt 0:00:01]} 6. Nxe5 {[%emt 0:00:02]} Be7 {[%emt 0:00:01]} 7. Bf1 {[%emt 0:00:03]} Nxe5 {[%emt 0:00:03]} 8. Rxe5 {[%emt 0:00:02]} O-O {[%emt 0:00:01]} 9. d4 {[%emt 0:00:03]} Bf6 {[%emt 0:00:05]} 10. Re1 {[%emt 0:00:02]} Re8 {[%emt 0:00:07] C67: Ruy Lopez: Berlin Defence: 4 0-0 Nxe4.} 11. c3 {[%emt 0:00:05]} Rxe1 {[%emt 0:00:26]} 12. Qxe1 {[%emt 0:00:04]} Nf5 {[%emt 0:00:04] The position is equal.} 13. Bf4 {[%emt 0:00:13][%cal Of4c7]} d6 {[%emt 0:00:22]} 14. Bd3 {[%emt 0:00:04] [#]} Nh4 $5 $146 {[%emt 0:00:50][%cal Oc8h3][%mdl 8] An interesting novelty.} ({Predecessor:} 14... Be6 15. Nd2 Bg5 16. Qe4 d5 17. Qe5 Bxf4 18. Qxf4 Qd6 19. Qf3 g6 20. Re1 Ng7 {½-½ Anand,V (2773)-Radjabov,T (2757) Tata Steel-A 81st 2019 (4)}) 15. Nd2 {[%emt 0:00:15]} Ng6 {[%emt 0:00:12]} 16. Bg3 {[%emt 0:00:07]} Be6 {[%emt 0:00:02]} 17. Bc4 {[%emt 0:00:37]} Bxc4 {[%emt 0:00:22]} 18. Nxc4 {[%emt 0:00:04]} Qd7 {[%emt 0:00:04]} 19. Qd2 {[%emt 0:00:28]} b5 {[%emt 0:00:21]} 20. Ne3 {[%emt 0:00:15]} Bg5 {[%emt 0:00:02]} 21. Qd3 {[%emt 0:00:28]} Re8 {[%emt 0:01:09]} 22. Rf1 {[%emt 0:01:39]} Bxe3 {[%emt 0:00:25]} 23. fxe3 {[%emt 0:00:04]} d5 {[%emt 0:00:02]} 24. a4 {[%emt 0:02:21]} a6 {[%emt 0:00:21]} 25. axb5 {[%emt 0:00:13]} axb5 {[%emt 0:00:02]} 26. Re1 {[%emt 0:00:10]} Re4 {[%emt 0:00:39]} 27. Ra1 {[%emt 0:00:21]} c6 {[%emt 0:00:13]} 28. Ra8+ {[%emt 0:00:13]} Re8 {[%emt 0:00:09]} (28... Nf8 {feels hotter.} 29. Kf2 h6 30. Be5 f6) 29. Rxe8+ {[%emt 0:02:09]} Qxe8 $15 {[%emt 0:00:03][%mdl 4096] Endgame KQB-KQN} 30. Kf2 {[%emt 0:00:01]} Qe6 {[%emt 0:00:54] Prevents Qf5.} 31. Qb1 {[%emt 0:00:07]} h5 {[%emt 0:00:24]} 32. h3 {[%emt 0:00:03]} Nf8 {[%emt 0:00:07]} 33. Qa1 {[%emt 0:00:39]} Nd7 {[%emt 0:00:46]} 34. Qa8+ {[%emt 0:00:21]} (34. Bh4 $15) 34... Kh7 $17 {[%emt 0:00:01]} 35. Qc8 {[%emt 0:02:01]} Qf6+ $1 {[%emt 0:00:06]} 36. Kg1 {[%emt 0:00:48]} Nb6 {[%emt 0:00:03]} 37. Qe8 {[%emt 0:00:20]} Na4 {[%emt 0:00:48]} 38. e4 {[%emt 0:00:05]} Qe6 {[%emt 0:00:06]} 39. Qxe6 {[%emt 0:00:46]} fxe6 {[%emt 0:00:02] KB-KN} 40. Kf2 {[%emt 0:00:07]} Nxb2 {[%emt 0:00:21]} 41. Kf3 {[%emt 0:00:04]} Kg6 {[%emt 0:00:58]} 42. Kf4 {[%emt 0:00:01]} Nc4 {[%emt 0:00:28][%cal Oe6e5]} 43. Be1 {[%emt 0:00:03]} Kf7 {[%emt 0:00:02]} 44. Bh4 {[%emt 0:00:11]} Nd6 {[%emt 0:00:46]} 45. exd5 {[%emt 0:00:03]} exd5 {[%emt 0:00:03]} 46. Ke5 {[%emt 0:00:03]} (46. Bd8 $17) 46... Nc4+ $2 {[%emt 0:00:41]} (46... Ne4 $19 47. Be1 h4) 47. Kf4 {[%emt 0:00:02]} g6 {[%emt 0:00:10]} 48. Bf2 $2 {[%emt 0:00:04][%mdl 8192]} (48. g4 $17) 48... Nd6 $2 {[%emt 0:00:21]} (48... Nd2 $19 49. Be1 Ne4) 49. Ke5 $2 {[%emt 0:00:04]} (49. Be1 $17) 49... Ne4 $19 {[%emt 0:00:36]} 50. Be1 {[%emt 0:00:01]} Ke7 {[%emt 0:01:12]} 51. Kf4 {[%emt 0:00:05]} Kf6 {[%emt 0:00:10]} 52. h4 $2 {[%emt 0:00:03]} (52. Kf3) 52... Ke6 {[%emt 0:00:10]} 53. g3 {[%emt 0:00:03]} Kf6 {[%emt 0:00:12]} 54. g4 {[%emt 0:00:00]} Ke6 {[%emt 0:00:05]} 55. Kf3 {[%emt 0:00:01]} Nf6 {[%emt 0:00:03]} 56. gxh5 {[%emt 0:00:03]} (56. g5 $142 Ne4 57. Kf4) 56... gxh5 {[%emt 0:00:01]} 57. Kf4 {[%emt 0:00:08]} Ne4 {[%emt 0:00:01]} 58. Ke3 {[%emt 0:00:02]} Kf5 {[%emt 0:00:03]} 59. Kf3 {[%emt 0:00:01]} Nd6 {[%emt 0:00:26] Threatens to win with ...Ne4.} 60. Bd2 {[%emt 0:00:00]} Nc4 $2 {[%emt 0:00:01]} (60... Ke6 $19 {is more deadly.} 61. Be1 Kf6) 61. Bc1 {[%emt 0:00:01]} Nb6 {[%emt 0:00:05] Hoping for ...Kg6.} 62. Bd2 $2 {[%emt 0:00:03][%mdl 8192]} (62. Ba3 $17) 62... Nd7 $2 {[%emt 0:00:05]} (62... Na4 63. Be1 Nb6) 63. Bg5 $2 {[%emt 0:00:05]} (63. Be3) 63... Nf8 $2 {[%emt 0:00:05]} (63... c5 $1 $19 {[%cal Rc5d4] And now ...cxd4 would win.} 64. dxc5 Nxc5) 64. Bd2 $2 {[%emt 0:00:02]} (64. Bd8 $17 {keeps fighting.}) 64... Ne6 {[%emt 0:00:04]} 65. Be3 {[%emt 0:00:02]} Nd8 {[%emt 0:00:03]} (65... Kg6 $1 $19 {[%cal Rg6f5] Strongly threatening ...Kf5.} 66. Bf2 Kf5) 66. Bd2 $2 {[%emt 0:00:01][%mdl 8192]} (66. Bh6 $17 {is more resistant.}) 66... Nb7 $1 {[%emt 0:00:03]} 67. Bf4 $2 {[%emt 0:00:02][%mdl 8192] [#]} (67. Be3 $17 {nothing else works.}) 67... Na5 $2 {[%emt 0:00:02]} (67... c5 $1 $19 {[%cal Rc5d4] ...cxd4 is the strong threat.} 68. dxc5 Nxc5) 68. Bd2 {[%emt 0:00:01]} Nc4 {[%emt 0:00:05]} (68... Nb3 $5 {[%cal Rb3d2]} 69. Be3 Kf6 $17) 69. Bc1 $1 {[%emt 0:00:01]} Kf6 {[%emt 0:00:16]} 70. Bg5+ {[%emt 0:00:02]} Ke6 {[%emt 0:00:03]} 71. Bc1 $2 {[%emt 0:00:01][%mdl 8192]} (71. Kf4 $17) 71... Kf5 $2 {[%emt 0:00:02]} (71... Nd6 $19 {has better winning chances.} 72. Kf4 Ne4) 72. Bf4 $17 {[%emt 0:00:05]} Nb6 $2 {[%emt 0:00:06][%mdl 8192]} (72... Na3 $17 73. Bd6 Nc2) 73. Bd2 $1 $19 {[%emt 0:00:03]} Nd7 {[%emt 0:00:03]} 74. Bg5 {[%emt 0:00:03] [#]} c5 $1 {[%emt 0:00:06]} 75. dxc5 {[%emt 0:00:10]} Nxc5 {[%emt 0:00:01] White must now prevent ...Ne4.} 76. Bd8 {[%emt 0:00:12]} Ne4 {[%emt 0:00:25]} (76... Na6 $142 {...Nb8 would be deadly.} 77. Ke3 Nb8) 77. Ke3 $2 {[%emt 0:00:01]} (77. Ba5) 77... Nxc3 {[%emt 0:00:17] ( -> ...b4)} 78. Kd4 {[%emt 0:00:02]} b4 {[%emt 0:00:01][%cal Bb5b4,Bb4b3,Bb3b2][%mdl 32] Black mates.} 79. Be7 {[%emt 0:00:01]} Nb5+ {[%emt 0:00:13]} 80. Kd3 {[%emt 0:00:02]} b3 {[%emt 0:00:01]} 81. Bc5 {[%emt 0:00:04]} b2 {[%emt 0:00:15]} 82. Kc2 {[%emt 0:00:02] [#]} Nc3 $1 {[%emt 0:00:00][%mdl 576] Promotion.   Weighted Error Value: White=0.38/Black=0.27 (precise)} 0-1